fUST/lending_fUST_20240904
["ID","MTS","AMOUNT","RATE_DAILY","PERIOD"]
[337092799,1725420699342,-500.0,0.0003178,2]
[337092800,1725420699352,-731.93,0.0003178,2]
[337092801,1725420699363,-500.0,0.0003178,2]
[337092802,1725420699373,-555.67,0.0003178,2]
[337092803,1725420699382,-534.31,0.0003178,2]
[337092804,1725420699394,-2911.16,0.0003178,2]
[337092805,1725420699403,-500.0,0.0003178,2]
[337092806,1725420699413,-500.0,0.0003178,2]
[337092807,1725420699422,-1427.1,0.0003178,2]
[337092808,1725420699432,-881.16,0.0003178,2]
[337092809,1725420699442,-500.0,0.0003178,2]
[337092810,1725420699452,-500.0,0.0003178,2]
[337092811,1725420699462,-706.4,0.0003178,2]
[337092812,1725420699472,-524.63,0.0003178,2]
[337092813,1725420699481,-157.16556744,0.0003178,2]
[337092814,1725420699490,-500.0,0.0003178,2]
[337092815,1725420699499,-2009.2,0.0003178,2]
[337092816,1725420699508,-695.98,0.0003178,2]
[337092817,1725420699517,-566.54691047,0.0003178,2]
[337092818,1725420699527,-896.76,0.0003178,2]
[337092819,1725420699537,-1155.59,0.0003178,2]
[337092820,1725420699546,-592.51,0.0003178,2]
[337092821,1725420699555,-791.9,0.0003178,2]
[337092822,1725420699565,-547.68,0.0003178,2]
[337092823,1725420699575,-500.0,0.0003178,2]
[337092824,1725420699584,-500.0,0.0003178,2]
[337092825,1725420699593,-500.0,0.0003178,2]
[337092826,1725420699602,-642.42,0.0003178,2]
[337092827,1725420699613,-1249.32,0.0003178,2]
[337092828,1725420699622,-2356.93,0.0003178,2]
[337092829,1725420699632,-834.19,0.0003178,2]
[337092830,1725420699643,-958.5,0.0003178,2]
[337092831,1725420699655,-832.71,0.0003178,2]
[337092832,1725420699665,-500.0,0.0003178,2]
[337092833,1725420699677,-652.3,0.0003178,2]
[337092834,1725420699692,-500.0,0.0003178,2]
[337092835,1725420699711,-901.33,0.0003178,2]
[337092836,1725420699729,-1011.35,0.0003178,2]
[337092837,1725420699749,-2862.9,0.0003178,2]
[337092838,1725420699769,-2987.56,0.0003178,2]
[337092839,1725420699786,-215.85558015,0.0003178,2]
[337092840,1725420699805,-3402.81,0.0003178,2]
[337092841,1725420699822,-500.0,0.0003178,2]
[337092842,1725420699839,-1811.33,0.0003178,2]
[337092843,1725420699859,-612.22,0.0003178,2]
[337092844,1725420699878,-1243.1,0.0003178,2]
[337092845,1725420699893,-717.23,0.0003178,2]
[337092846,1725420699912,-4418.31,0.0003178,2]
[337092847,1725420699928,-516.34693682,0.0003178,2]
[337092848,1725420699944,-115684.14,0.0003178,2]
[337092849,1725420699959,-55826.22,0.0003178,2]
[337092850,1725420699974,-500.0,0.0003178,2]
[337092851,1725420699991,-500.0,0.0003178,2]
[337092852,1725420700005,-26324.52,0.0003178,2]
[337092853,1725420700020,-6301.07,0.0003178,2]
[337092854,1725420700036,-636.47,0.0003178,2]
[337092855,1725420700051,-1916.51,0.0003178,2]
[337092856,1725420700066,-500.0,0.0003178,2]
[337092857,1725420700081,-500.0,0.0003178,2]
[337092858,1725420700098,-823.36,0.0003178,2]
[337092859,1725420700113,-1701.17,0.0003178,2]
[337092860,1725420700128,-729.84,0.0003178,2]
[337092861,1725420700143,-512.51827935,0.0003178,2]
[337092862,1725420700158,-712.75,0.0003178,2]
[337092863,1725420700172,-222.31058664,0.0003178,2]
[337092864,1725420700187,-1160.46,0.0003178,2]
[337092865,1725420700203,-1329.1,0.0003178,2]
[337092866,1725420700216,-2729.74,0.0003178,2]
[337092867,1725420700230,-1898.01,0.0003178,2]
[337092868,1725420700244,-500.0,0.0003178,2]
[337092869,1725420700257,-2159.38,0.0003178,2]
[337092870,1725420700271,-1592.01,0.0003178,2]
[337092871,1725420700286,-6188.78,0.0003178,2]
[337092872,1725420700299,-4210.31,0.0003178,2]
[337092873,1725420700314,-1529.25,0.0003178,2]
[337092874,1725420700328,-10461.88,0.0003178,2]
[337092875,1725420700343,-729.82,0.0003178,2]
[337092876,1725420700357,-500.0,0.0003178,2]
[337092877,1725420700371,-1280.26,0.0003178,2]
[337092878,1725420700386,-1560.58,0.0003178,2]
[337092879,1725420700403,-7136.97,0.0003178,2]
[337092880,1725420700417,-1328.68,0.0003178,2]
[337092881,1725420700432,-929.51,0.0003178,2]
[337092882,1725420700447,-3077.96,0.0003178,2]
[337092883,1725420700465,-683.0,0.0003178,2]
[337092884,1725420700479,-11939.04,0.0003178,2]
[337092885,1725420700495,-1259.14,0.0003178,2]
[337092886,1725420700511,-13600.34,0.0003178,2]
[337092887,1725420700525,-1182.99,0.0003178,2]
[337092888,1725420700546,-500.0,0.0003178,2]
[337092889,1725420700560,-1155.31,0.0003178,2]
[337092890,1725420700574,-851.0,0.0003178,2]
[337092891,1725420700587,-500.0,0.0003178,2]
[337092892,1725420700601,-1763.89,0.0003178,2]
[337092893,1725420700615,-500.0,0.0003178,2]
[337092894,1725420700628,-652.71,0.0003178,2]
[337092895,1725420700642,-756.04,0.0003178,2]
[337092896,1725420700658,-647.88,0.0003178,2]
[337092897,1725420700675,-4853.04,0.0003178,2]
[337092898,1725420700689,-963.22,0.0003178,2]
[337092899,1725420700704,-1079.72,0.0003178,2]
[337092900,1725420700718,-500.0,0.0003178,2]
[337092901,1725420700733,-803.37,0.0003178,2]
[337092902,1725420700749,-606.86,0.0003178,2]
[337092903,1725420700765,-500.0,0.0003178,2]
[337092904,1725420700783,-500.0,0.0003178,2]
[337092905,1725420700935,-1132.32,0.0003178,2]
[337092906,1725420700947,-636.94,0.0003178,2]
[337092907,1725420700957,-5252.83,0.0003178,2]
[337092908,1725420700968,-576.63,0.0003178,2]
[337092909,1725420700978,-901.7,0.0003178,2]
[337092910,1725420700987,-1751.72,0.0003178,2]
[337092911,1725420700997,-500.0,0.0003178,2]
[337092912,1725420701009,-1256.59,0.0003178,2]
[337092913,1725420701020,-500.0,0.0003178,2]
[337092914,1725420701035,-1139.08,0.0003178,2]
[337092915,1725420701045,-1745.83,0.0003178,2]
[337092916,1725420701057,-268.36993209,0.00031781,2]
[337092917,1725420701070,-16014.92753039,0.00031863,10]
[337092918,1725420701080,-500.0,0.00031899,5]
[337092919,1725420701090,-200.0,0.000319,9]
[337092920,1725420701101,-200.0,0.000319,9]
[337092921,1725420701111,-268.36993209,0.00031918,2]
[337092922,1725420701121,-200.0,0.00032,10]
[337092923,1725420701131,-1000.0,0.00032,2]
[337092924,1725420701142,-2000.0,0.00032,30]
[337092925,1725420701152,-268.36993209,0.00032027,2]
[337092926,1725420701163,-500.0,0.00032054,2]
[337092927,1725420701173,-500.0,0.00032054,2]
[337092928,1725420701183,-768.18,0.00032054,2]
[337092929,1725420701194,-500.0,0.00032054,2]
[337092930,1725420701204,-500.0,0.00032054,2]
[337092931,1725420701215,-354.30740165,0.00032054,2]
[337092932,1725420701225,-1082.29,0.00032054,2]
[337092933,1725420701234,-686.25,0.00032054,2]
[337092934,1725420701246,-680.2,0.00032054,2]
[337092935,1725420701257,-592.32,0.00032054,2]
[337092936,1725420701267,-500.0,0.00032054,2]
[337092937,1725420701281,-674.32,0.00032054,2]
[337092938,1725420701292,-4019.26,0.00032054,2]
[337092939,1725420701301,-675.84,0.00032054,2]
[337092940,1725420701311,-754.15,0.00032054,2]
[337092941,1725420701323,-609.64,0.00032054,2]
[337092942,1725420701332,-654.89,0.00032054,2]
[337092943,1725420701342,-511.88,0.00032054,2]
[337092944,1725420701351,-500.0,0.00032054,2]
[337092945,1725420701360,-500.0,0.00032054,2]
[337092946,1725420701370,-731.93,0.00032054,2]
[337092947,1725420701381,-500.0,0.00032054,2]
[337092948,1725420701391,-555.67,0.00032054,2]
[337092949,1725420701405,-534.31,0.00032054,2]
[337092950,1725420701416,-2911.16,0.00032054,2]
[337092951,1725420701426,-500.0,0.00032054,2]
[337092952,1725420701436,-500.0,0.00032054,2]
[337092953,1725420701446,-1427.1,0.00032054,2]
[337092954,1725420701456,-881.16,0.00032054,2]
[337092955,1725420701465,-500.0,0.00032054,2]
[337092956,1725420701475,-500.0,0.00032054,2]
[337092957,1725420701485,-706.4,0.00032054,2]
[337092958,1725420701495,-524.63,0.00032054,2]
[337092959,1725420701506,-500.0,0.00032054,2]
[337092960,1725420701516,-2009.2,0.00032054,2]
[337092961,1725420701528,-695.98,0.00032054,2]
[337092962,1725420701541,-896.76,0.00032054,2]
[337092963,1725420701551,-1155.59,0.00032054,2]
[337092964,1725420701561,-592.51,0.00032054,2]
[337092965,1725420701570,-791.9,0.00032054,2]
[337092966,1725420701580,-547.68,0.00032054,2]
[337092967,1725420701589,-500.0,0.00032054,2]
[337092968,1725420701599,-365.32697777,0.00032054,2]
[337092969,1725420701610,-500.0,0.00032054,2]
[337092970,1725420701620,-642.42,0.00032054,2]
[337092971,1725420701631,-1249.32,0.00032054,2]
[337092972,1725420701640,-2356.93,0.00032054,2]
[337092973,1725420701652,-834.19,0.00032054,2]
[337092974,1725420701662,-958.5,0.00032054,2]
[337092975,1725420701673,-832.71,0.00032054,2]
[337092976,1725420701684,-500.0,0.00032054,2]
[337092977,1725420701695,-652.3,0.00032054,2]
[337092978,1725420701706,-510.80161654,0.00032054,2]
[337092979,1725420701717,-901.33,0.00032054,2]
[337092980,1725420701727,-1011.35,0.00032054,2]
[337092981,1725420701740,-2862.9,0.00032054,2]
[337092982,1725420701751,-2987.56,0.00032054,2]
[337092983,1725420701763,-3402.81,0.00032054,2]
[337092984,1725420701775,-500.0,0.00032054,2]
[337092985,1725420701790,-1811.33,0.00032054,2]
[337092986,1725420701802,-612.22,0.00032054,2]
[337092987,1725420701813,-1243.1,0.00032054,2]
[337092988,1725420701823,-717.23,0.00032054,2]
[337092989,1725420701833,-4418.31,0.00032054,2]
[337092990,1725420701844,-115684.14,0.00032054,2]
[337092991,1725420701855,-55826.22,0.00032054,2]
[337092992,1725420701865,-500.0,0.00032054,2]
[337092993,1725420701876,-514.79713987,0.00032054,2]
[337092994,1725420701891,-6301.07,0.00032054,2]
[337092995,1725420701903,-26324.52,0.00032054,2]
[337092996,1725420701913,-636.47,0.00032054,2]
[337092997,1725420701923,-1916.51,0.00032054,2]
[337092998,1725420701932,-500.0,0.00032054,2]
[337092999,1725420701943,-304.80368037,0.00032054,2]
[337093000,1725420701955,-823.36,0.00032054,2]
[337093001,1725420701964,-1701.17,0.00032054,2]
[337093002,1725420701975,-729.84,0.00032054,2]
[337093003,1725420701986,-712.75,0.00032054,2]
[337093004,1725420701996,-1160.46,0.00032054,2]
[337093005,1725420702008,-1329.1,0.00032054,2]
[337093006,1725420702019,-2729.74,0.00032054,2]
[337093007,1725420702030,-1898.01,0.00032054,2]
[337093008,1725420702041,-500.0,0.00032054,2]
[337093009,1725420702051,-2159.38,0.00032054,2]
[337093010,1725420702060,-1592.01,0.00032054,2]
[337093011,1725420702070,-6188.78,0.00032054,2]
[337093012,1725420702081,-4210.31,0.00032054,2]
[337093013,1725420702092,-1529.25,0.00032054,2]
[337093014,1725420702103,-10461.88,0.00032054,2]
[337093015,1725420702114,-729.82,0.00032054,2]
[337093016,1725420702125,-509.65732301,0.00032054,2]
[337093017,1725420702135,-1280.26,0.00032054,2]
[337093018,1725420702146,-1560.58,0.00032054,2]
[337093019,1725420702157,-7136.97,0.00032054,2]
[337093020,1725420702168,-1328.68,0.00032054,2]
[337093021,1725420702179,-929.51,0.00032054,2]
[337093022,1725420702191,-3077.96,0.00032054,2]
[337093023,1725420702202,-683.0,0.00032054,2]
[337093024,1725420702213,-11939.04,0.00032054,2]
[337093025,1725420702223,-1259.14,0.00032054,2]
[337093026,1725420702234,-13600.34,0.00032054,2]
[337093027,1725420702245,-1182.99,0.00032054,2]
[337093028,1725420702256,-500.0,0.00032054,2]
[337093029,1725420702266,-1155.31,0.00032054,2]
[337093030,1725420702279,-851.0,0.00032054,2]
[337093031,1725420702289,-186.58704669,0.00032054,2]
[337093032,1725420702299,-1763.89,0.00032054,2]
[337093033,1725420702312,-500.0,0.00032054,2]
[337093034,1725420702321,-652.71,0.00032054,2]
[337093035,1725420702330,-756.04,0.00032054,2]
[337093036,1725420702340,-647.88,0.00032054,2]
[337093037,1725420702350,-4853.04,0.00032054,2]
[337093038,1725420702359,-963.22,0.00032054,2]
[337093039,1725420702368,-1079.72,0.00032054,2]
[337093040,1725420702378,-500.0,0.00032054,2]
[337093041,1725420702387,-803.37,0.00032054,2]
[337093042,1725420702399,-606.86,0.00032054,2]
[337093043,1725420702409,-500.0,0.00032054,2]
[337093044,1725420702418,-500.0,0.00032054,2]
[337093045,1725420702428,-1132.32,0.00032054,2]
[337093046,1725420702438,-636.94,0.00032054,2]
[337093047,1725420702448,-5252.83,0.00032054,2]
[337093048,1725420702457,-576.63,0.00032054,2]
[337093049,1725420702467,-901.7,0.00032054,2]
[337093050,1725420702477,-1751.72,0.00032054,2]
[337093051,1725420702487,-500.0,0.00032054,2]
[337093052,1725420702496,-1256.59,0.00032054,2]
[337093053,1725420702506,-500.0,0.00032054,2]
[337093054,1725420702515,-1139.08,0.00032054,2]
[337093055,1725420702524,-1745.83,0.00032054,2]
[337093056,1725420702536,-268.36993209,0.00032164,2]
[337093057,1725420702546,-766.42735897,0.00032228,2]
[337093058,1725420702555,-268.36993209,0.00032301,2]
[337093059,1725420702565,-500.0,0.00032328,2]
[337093060,1725420702574,-500.0,0.00032328,2]
[337093061,1725420702584,-768.18,0.00032328,2]
[337093062,1725420702593,-500.0,0.00032328,2]
[337093063,1725420702602,-500.0,0.00032328,2]
[337093064,1725420702612,-1082.29,0.00032328,2]
[337093065,1725420702621,-686.25,0.00032328,2]
[337093066,1725420702631,-680.2,0.00032328,2]
[337093067,1725420702639,-592.32,0.00032328,2]
[337093068,1725420702648,-500.0,0.00032328,2]
[337093069,1725420702658,-674.32,0.00032328,2]
[337093070,1725420702746,-4019.26,0.00032328,2]
[337093071,1725420702763,-675.84,0.00032328,2]
[337093072,1725420702773,-754.15,0.00032328,2]
[337093073,1725420702783,-609.64,0.00032328,2]
[337093074,1725420702793,-654.89,0.00032328,2]
[337093075,1725420702803,-511.88,0.00032328,2]
[337093076,1725420702812,-500.0,0.00032328,2]
[337093077,1725420702821,-500.0,0.00032328,2]
[337093078,1725420702831,-731.93,0.00032328,2]
[337093079,1725420702841,-500.0,0.00032328,2]
[337093080,1725420702851,-555.67,0.00032328,2]
[337093081,1725420702861,-534.31,0.00032328,2]
[337093082,1725420702871,-2911.16,0.00032328,2]
[337093083,1725420702881,-500.0,0.00032328,2]
[337093084,1725420702890,-215.29375947,0.00032328,2]
[337093085,1725420702900,-1427.1,0.00032328,2]
[337093086,1725420702909,-881.16,0.00032328,2]
[337093087,1725420702919,-500.0,0.00032328,2]
[337093088,1725420702928,-500.0,0.00032328,2]
[337093089,1725420702938,-706.4,0.00032328,2]
[337093090,1725420702950,-524.63,0.00032328,2]
[337093091,1725420702961,-500.0,0.00032328,2]
[337093092,1725420702972,-2009.2,0.00032328,2]
[337093093,1725420702983,-695.98,0.00032328,2]
[337093094,1725420702994,-896.76,0.00032328,2]
[337093095,1725420703006,-1155.59,0.00032328,2]
[337093096,1725420703016,-592.51,0.00032328,2]
[337093097,1725420703028,-791.9,0.00032328,2]
[337093098,1725420703040,-547.68,0.00032328,2]
[337093099,1725420703050,-500.0,0.00032328,2]
[337093100,1725420703060,-500.0,0.00032328,2]
[337093101,1725420703070,-642.42,0.00032328,2]
[337093102,1725420703079,-1249.32,0.00032328,2]
[337093103,1725420703090,-2356.93,0.00032328,2]
[337093104,1725420703101,-834.19,0.00032328,2]
[337093105,1725420703112,-958.5,0.00032328,2]
[337093106,1725420703122,-832.71,0.00032328,2]
[337093107,1725420703132,-440.08794206,0.00032328,2]
[337093108,1725420703142,-652.3,0.00032328,2]
[337093109,1725420703152,-901.33,0.00032328,2]
[337093110,1725420703162,-1011.35,0.00032328,2]
[337093111,1725420703171,-2862.9,0.00032328,2]
[337093112,1725420703181,-2987.56,0.00032328,2]
[337093113,1725420703190,-3402.81,0.00032328,2]
[337093114,1725420703199,-1811.33,0.00032328,2]
[337093115,1725420703209,-500.0,0.00032328,2]
[337093116,1725420703220,-612.22,0.00032328,2]
[337093117,1725420703229,-1243.1,0.00032328,2]
[337093118,1725420703239,-717.23,0.00032328,2]
[337093119,1725420703249,-4418.31,0.00032328,2]
[337093120,1725420703259,-115684.14,0.00032328,2]
[337093121,1725420703269,-55826.22,0.00032328,2]
[337093122,1725420703281,-500.0,0.00032328,2]
[337093123,1725420703291,-6301.07,0.00032328,2]
[337093124,1725420703301,-26324.52,0.00032328,2]
[337093125,1725420703312,-636.47,0.00032328,2]
[337093126,1725420703323,-1916.51,0.00032328,2]
[337093127,1725420703333,-500.0,0.00032328,2]
[337093128,1725420703345,-823.36,0.00032328,2]
[337093129,1725420703355,-1701.17,0.00032328,2]
[337093130,1725420703365,-729.84,0.00032328,2]
[337093131,1725420703375,-712.75,0.00032328,2]
[337093132,1725420703385,-1160.46,0.00032328,2]
[337093133,1725420703395,-1329.1,0.00032328,2]
[337093134,1725420703408,-2729.74,0.00032328,2]
[337093135,1725420703419,-1898.01,0.00032328,2]
[337093136,1725420703429,-487.83463648,0.00032328,2]
[337093137,1725420703440,-2159.38,0.00032328,2]
[337093138,1725420703450,-1592.01,0.00032328,2]
[337093139,1725420703461,-6188.78,0.00032328,2]
[337093140,1725420703474,-4210.31,0.00032328,2]
[337093141,1725420703485,-1529.25,0.00032328,2]
[337093142,1725420703495,-10461.88,0.00032328,2]
[337093143,1725420703506,-729.82,0.00032328,2]
[337093144,1725420703516,-1280.26,0.00032328,2]
[337093145,1725420703525,-1560.58,0.00032328,2]
[337093146,1725420703537,-7136.97,0.00032328,2]
[337093147,1725420703548,-1328.68,0.00032328,2]
[337093148,1725420703559,-929.51,0.00032328,2]
[337093149,1725420703572,-3077.96,0.00032328,2]
[337093150,1725420703583,-683.0,0.00032328,2]
[337093151,1725420703593,-11939.04,0.00032328,2]
[337093152,1725420703602,-1259.14,0.00032328,2]
[337093153,1725420703613,-13600.34,0.00032328,2]
[337093154,1725420703623,-1182.99,0.00032328,2]
[337093155,1725420703632,-585.69,0.00032328,2]
[337093156,1725420703642,-1155.31,0.00032328,2]
[337093157,1725420703652,-851.0,0.00032328,2]
[337093158,1725420703662,-1763.89,0.00032328,2]
[337093159,1725420703671,-500.0,0.00032328,2]
[337093160,1725420703681,-652.71,0.00032328,2]
[337093161,1725420703690,-756.04,0.00032328,2]
[337093162,1725420703700,-647.88,0.00032328,2]
[337093163,1725420703710,-4853.04,0.00032328,2]
[337093164,1725420703720,-963.22,0.00032328,2]
[337093165,1725420703730,-1079.72,0.00032328,2]
[337093166,1725420703739,-193.86489005,0.00032328,2]
[337093167,1725420703749,-803.37,0.00032328,2]
[337093168,1725420703760,-606.86,0.00032328,2]
[337093169,1725420703769,-500.0,0.00032328,2]
[337093170,1725420703780,-1132.32,0.00032328,2]
[337093171,1725420703790,-636.94,0.00032328,2]
[337093172,1725420703800,-5252.83,0.00032328,2]
[337093173,1725420703810,-576.63,0.00032328,2]
[337093174,1725420703821,-901.7,0.00032328,2]
[337093175,1725420703831,-1751.72,0.00032328,2]
[337093176,1725420703841,-500.0,0.00032328,2]
[337093177,1725420703852,-1256.59,0.00032328,2]
[337093178,1725420703862,-230.02189197,0.00032328,2]
[337093179,1725420703873,-1139.08,0.00032328,2]
[337093180,1725420703884,-1745.83,0.00032328,2]
[337093181,1725420703894,-268.36993209,0.00032438,2]
[337093182,1725420703904,-268.36993207,0.00032438,2]
[337093183,1725420703914,-500.0,0.00032479,2]
[337093184,1725420703926,-587.0,0.00032486,2]
[337093185,1725420703936,-2013.99539227,0.00032497,5]
[337093186,1725420703947,-2000.0,0.00032497,5]
[337093187,1725420703956,-35175.81058428,0.000325,2]
[337093188,1725420703967,-150.0,0.00032524,5]
[337093189,1725420703977,-268.36993209,0.00032575,2]
[337093190,1725420703986,-500.0,0.00032602,2]
[337093191,1725420703996,-500.0,0.00032602,2]
[337093192,1725420704006,-768.18,0.00032602,2]
[337093193,1725420704016,-500.0,0.00032602,2]
[337093194,1725420704025,-500.0,0.00032602,2]
[337093195,1725420704040,-1082.29,0.00032602,2]
[337093196,1725420704050,-686.25,0.00032602,2]
[337093197,1725420704060,-680.2,0.00032602,2]
[337093198,1725420704069,-592.32,0.00032602,2]
[337093199,1725420704078,-500.0,0.00032602,2]
[337093200,1725420704088,-674.32,0.00032602,2]
[337093201,1725420704097,-4019.26,0.00032602,2]
[337093202,1725420704106,-675.84,0.00032602,2]
[337093203,1725420704116,-754.15,0.00032602,2]
[337093204,1725420704126,-609.64,0.00032602,2]
[337093205,1725420704136,-654.89,0.00032602,2]
[337093206,1725420704148,-511.88,0.00032602,2]
[337093207,1725420704157,-500.0,0.00032602,2]
[337093208,1725420704167,-331.13035869,0.00032602,2]
[337093209,1725420704177,-731.93,0.00032602,2]
[337093210,1725420704187,-500.0,0.00032602,2]
[337093211,1725420704197,-555.67,0.00032602,2]
[337093212,1725420704206,-534.31,0.00032602,2]
[337093213,1725420704215,-2911.16,0.00032602,2]
[337093214,1725420704226,-500.0,0.00032602,2]
[337093215,1725420704235,-1427.1,0.00032602,2]
[337093216,1725420704245,-881.16,0.00032602,2]
[337093217,1725420704255,-500.0,0.00032602,2]
[337093218,1725420704265,-397.76160539,0.00032602,2]
[337093219,1725420704274,-706.4,0.00032602,2]
[337093220,1725420704287,-524.63,0.00032602,2]
[337093221,1725420704297,-500.0,0.00032602,2]
[337093222,1725420704307,-2009.2,0.00032602,2]
[337093223,1725420704401,-695.98,0.00032602,2]
[337093224,1725420704412,-896.76,0.00032602,2]
[337093225,1725420704422,-1155.59,0.00032602,2]
[337093226,1725420704433,-592.51,0.00032602,2]
[337093227,1725420704443,-791.9,0.00032602,2]
[337093228,1725420704452,-547.68,0.00032602,2]
[337093229,1725420704462,-592.84692613,0.00032602,2]
[337093230,1725420704472,-232.61052272,0.00032602,2]
[337093231,1725420704481,-642.42,0.00032602,2]
[337093232,1725420704491,-1249.32,0.00032602,2]
[337093233,1725420704501,-2356.93,0.00032602,2]
[337093234,1725420704510,-834.19,0.00032602,2]
[337093235,1725420704520,-958.5,0.00032602,2]
[337093236,1725420704529,-832.71,0.00032602,2]
[337093237,1725420704539,-652.3,0.00032602,2]
[337093238,1725420704549,-901.33,0.00032602,2]
[337093239,1725420704559,-1011.35,0.00032602,2]
[337093240,1725420704569,-2862.9,0.00032602,2]
[337093241,1725420704579,-2987.56,0.00032602,2]
[337093242,1725420704588,-3402.81,0.00032602,2]
[337093243,1725420704597,-1811.33,0.00032602,2]
[337093244,1725420704607,-500.0,0.00032602,2]
[337093245,1725420704616,-612.22,0.00032602,2]
[337093246,1725420704627,-1243.1,0.00032602,2]
[337093247,1725420704636,-717.23,0.00032602,2]
[337093248,1725420704645,-4418.31,0.00032602,2]
[337093249,1725420704655,-115684.14,0.00032602,2]
[337093250,1725420704665,-55826.22,0.00032602,2]
[337093251,1725420704675,-286.95881338,0.00032602,2]
[337093252,1725420704684,-6301.07,0.00032602,2]
[337093253,1725420704693,-26324.52,0.00032602,2]
[337093254,1725420704703,-636.47,0.00032602,2]
[337093255,1725420704712,-1916.51,0.00032602,2]
[337093256,1725420704722,-500.0,0.00032602,2]
[337093257,1725420704731,-823.36,0.00032602,2]
[337093258,1725420704741,-1701.17,0.00032602,2]
[337093259,1725420704751,-729.84,0.00032602,2]
[337093260,1725420704761,-712.75,0.00032602,2]
[337093261,1725420704770,-1160.46,0.00032602,2]
[337093262,1725420704780,-1329.1,0.00032602,2]
[337093263,1725420704790,-2729.74,0.00032602,2]
[337093264,1725420704799,-1898.01,0.00032602,2]
[337093265,1725420704808,-2159.38,0.00032602,2]
[337093266,1725420704818,-1592.01,0.00032602,2]
[337093267,1725420704827,-6188.78,0.00032602,2]
[337093268,1725420704838,-4210.31,0.00032602,2]
[337093269,1725420704848,-1529.25,0.00032602,2]
[337093270,1725420704858,-10461.88,0.00032602,2]
[337093271,1725420704868,-729.82,0.00032602,2]
[337093272,1725420704878,-1280.26,0.00032602,2]
[337093273,1725420704887,-1560.58,0.00032602,2]
[337093274,1725420704898,-7136.97,0.00032602,2]
[337093275,1725420704908,-1328.68,0.00032602,2]
[337093276,1725420704918,-929.51,0.00032602,2]
[337093277,1725420704928,-3077.96,0.00032602,2]
[337093278,1725420704938,-683.0,0.00032602,2]
[337093279,1725420704948,-11939.04,0.00032602,2]
[337093280,1725420704958,-1259.14,0.00032602,2]
[337093281,1725420704967,-13600.34,0.00032602,2]
[337093282,1725420704978,-1182.99,0.00032602,2]
[337093283,1725420704988,-1155.31,0.00032602,2]
[337093284,1725420704998,-851.0,0.00032602,2]
[337093285,1725420705008,-1763.89,0.00032602,2]
[337093286,1725420705018,-500.0,0.00032602,2]
[337093287,1725420705029,-652.71,0.00032602,2]
[337093288,1725420705039,-756.04,0.00032602,2]
[337093289,1725420705049,-647.88,0.00032602,2]
[337093290,1725420705059,-4853.04,0.00032602,2]
[337093291,1725420705068,-963.22,0.00032602,2]
[337093292,1725420705078,-1079.72,0.00032602,2]
[337093293,1725420705088,-803.37,0.00032602,2]
[337093294,1725420705098,-606.86,0.00032602,2]
[337093295,1725420705107,-500.0,0.00032602,2]
[337093296,1725420705118,-1132.32,0.00032602,2]
[337093297,1725420705127,-636.94,0.00032602,2]
[337093298,1725420705137,-5252.83,0.00032602,2]